fUSD/lending_fUSD_20240224
["ID","MTS","AMOUNT","RATE_DAILY","PERIOD"]
[315035106,1708739450133,-921.42690298,0.00048064,120]
[315035107,1708739450143,-90361.34759886,0.00048065,120]
[315035108,1708739450153,-208.73604877,0.00048069,120]
[315035109,1708739450165,-721.41117062,0.00048071,120]
[315035110,1708739450175,-150.0,0.00048093,30]
[315035111,1708739450185,-303.91837183,0.00048119,7]
[315035112,1708739450195,-150.0,0.00048131,30]
[315035113,1708739450205,-150.0,0.00048131,30]
[315035114,1708739450215,-150.0,0.00048151,30]
[315035115,1708739450224,-150.0,0.00048204,7]
[315035116,1708739450235,-150.0,0.00048219,30]
[315035117,1708739450245,-1500.0,0.0004825,7]
[315035118,1708739450255,-1500.0,0.0004827,7]
[315035119,1708739450265,-150.0,0.00048289,7]
[315035120,1708739450274,-150.0,0.00048306,30]
[315035121,1708739450283,-1493.63188,0.0004831,41]
[315035122,1708739450293,-150.0,0.00048352,7]
[315035123,1708739450302,-302.0,0.00048356,90]
[315035124,1708739450312,-150.0,0.00048372,7]
[315035125,1708739450321,-153.3548284,0.00048379,7]
[315035126,1708739450331,-150.0,0.00048391,7]
[315035127,1708739450341,-150.0,0.00048393,7]
[315035128,1708739450351,-150.0,0.00048394,30]
[315035129,1708739450361,-150.0,0.00048394,30]
[315035130,1708739450371,-3907.43,0.000484,7]
[315035131,1708739450380,-150.0,0.000484,7]
[315035132,1708739450390,-150.0,0.00048431,7]
[315035133,1708739450400,-150.0,0.0004845,2]
[315035134,1708739450411,-1500.0,0.0004845,7]
[315035135,1708739450420,-150.0,0.00048461,7]
[315035136,1708739450430,-1500.0,0.00048463,7]
[315035137,1708739450600,-150.0,0.0004847,7]
[315035138,1708739450611,-150.0,0.00048482,30]
[315035139,1708739450621,-150.0,0.00048493,7]
[315035140,1708739450631,-200.0,0.000485,23]
[315035141,1708739450641,-150.0,0.00048504,7]
[315035142,1708739450650,-150.0,0.00048516,2]
[315035143,1708739450662,-150.0,0.00048526,7]
[315035144,1708739450671,-150.0,0.00048526,7]
[315035145,1708739450683,-389.10555848,0.00048532,30]
[315035146,1708739450693,-152.50109945,0.00048534,39]
[315035147,1708739450703,-1500.0,0.00048551,7]
[315035148,1708739450715,-150.0,0.00048556,30]
[315035149,1708739450725,-150.0,0.00048569,30]
[315035150,1708739450735,-1493.63189,0.0004857,42]
[315035151,1708739450745,-150.0,0.00048657,30]
[315035152,1708739450754,-150.0,0.00048657,30]
[315035153,1708739450765,-150.0,0.00048657,30]
[315035154,1708739450776,-150.0,0.00048657,30]
[315035155,1708739450786,-150.0,0.00048658,7]
[315035156,1708739450796,-1500.0,0.00048686,7]
[315035157,1708739450805,-1000.0,0.00048699,2]
[315035158,1708739450815,-150.0,0.00048745,30]
[315035159,1708739450826,-1500.0,0.00048746,7]
[315035160,1708739450836,-246.16052105,0.00048746,7]
[315035161,1708739450845,-207.0,0.00048765,28]
[315035162,1708739450857,-829.23,0.00048767,2]
[315035163,1708739450866,-1650.0,0.00048767,24]
[315035164,1708739450877,-459.38,0.00048767,2]
[315035165,1708739450888,-400.0,0.0004877,3]
[315035166,1708739450898,-150.0,0.00048773,7]
[315035167,1708739450907,-162.5392602,0.00048796,2]
[315035168,1708739450919,-4984.22325509,0.00048796,2]
[315035169,1708739450930,-150.0,0.00048797,7]
[315035170,1708739450940,-157.022408,0.00048798,53]
[315035171,1708739450950,-1281.69346237,0.00048799,2]
[315035172,1708739450965,-9772.86663573,0.00048799,2]
[315035173,1708739450976,-3182.4601104,0.00048799,2]
[315035174,1708739450986,-1737.0212788,0.00048799,2]
[315035175,1708739450996,-286.0,0.000488,39]
[315035176,1708739451009,-1000.0,0.000488,24]
[315035177,1708739451019,-184192.58968231,0.0004881,15]
[315035178,1708739451029,-1072.93309328,0.0004881,30]
[315035179,1708739451040,-559.56352357,0.0004881,7]
[315035180,1708739451052,-14647.2038476,0.0004881,15]
[315035181,1708739451062,-12417.57604221,0.0004881,30]
[315035182,1708739451072,-546.57596493,0.0004881,30]
[315035183,1708739451082,-245.95918422,0.0004881,30]
[315035184,1708739451092,-1000.0,0.0004881,30]
[315035185,1708739451103,-1030.39395553,0.0004881,30]
[315035186,1708739451113,-150.0,0.00048832,30]
[315035187,1708739451122,-150.0,0.00048845,30]
[315035188,1708739451133,-168.366,0.00048845,120]
[315035189,1708739451144,-168.366,0.00048845,120]
[315035190,1708739451154,-3297.81396869,0.00048877,2]
[315035191,1708739451165,-26502.25975402,0.0004888,30]
[315035192,1708739451187,-5029.04993774,0.0004888,30]
[315035193,1708739451199,-9024.76269114,0.0004888,30]
[315035194,1708739451216,-5015.92869596,0.0004888,30]
[315035195,1708739451497,-1268.254226,0.00033573,7]
[315035196,1708739451510,-347.34089982,0.00033573,7]
[315035197,1708739451521,-303.84007919,0.00033573,7]
[315035198,1708739451532,-568.37329392,0.00033573,7]
[315035199,1708739451562,-1642.51693484,0.00033573,7]
[315035200,1708739451574,-5658.4171438,0.00033573,7]
[315035201,1708739451584,-255.0,0.0004,12]
[315035202,1708739451593,-1500.0,0.00048326,7]
[315035203,1708739451603,-1007.38660658,0.00048745,7]
[315035204,1708739451622,-492.61339342,0.00048745,7]
[315035205,1708739451632,-2940.96388949,0.0004888,30]
[315035206,1708739451786,-537.36293827,0.000399,2]
[315035207,1708739451798,-1050.5410691,0.000399,2]
[315035208,1708739451833,-3362.7511088,0.000399,2]
[315035209,1708739451843,-1474.18655024,0.0004888,30]
[315035210,1708739451855,-2951.52100116,0.0004888,30]
[315035211,1708739452136,-435.0,0.0004199,10]
[315035212,1708739452147,-171.32,0.0004199,10]
[315035213,1708739452157,-489.85017969,0.0004888,30]
[315035214,1708739452171,-648.6314654,0.0004888,30]
[315035215,1708739452182,-2152.0682057,0.0004888,30]
[315035216,1708739470475,5000.0,0.00022397,2]
[315035217,1708739496925,245000.0,0.00022396,2]
[315035218,1708739518813,405.7066,0.00022396,2]
[315035220,1708739658125,8755.94350098,0.00012,30]
[315035221,1708739671569,259.30410755,0.00022,2]
[315035222,1708739800624,151.23123692,0.00022198,2]
[315035223,1708739800886,1101.17,0.00021602,2]
[315035227,1708740203653,153.95,0.00022355,2]
[315035228,1708740303584,176.89,0.00022278,2]
[315035230,1708740335886,1046.11,0.00020406,2]
[315035234,1708740404870,177.78,0.00021999,2]
[315035235,1708740452306,250.0,0.00022182,2]
[315035236,1708740468678,300.0,0.00022,2]
[315035237,1708740497162,23900.0,0.00022148,2]
[315035247,1708740575081,2000.0,0.00021935,2]
[315035264,1708740631945,-184.71764787,0.00022441,2]
[315035267,1708740631955,-478.29711887,0.00022442,2]
[315035269,1708740631964,-158.16,0.00022445,2]
[315035270,1708740631973,-168.05,0.00022508,2]
[315035271,1708740631982,-158.16,0.00022523,2]
[315035272,1708740631992,-177.78,0.00022547,2]
[315035273,1708740632001,-4509.79,0.00022572,2]
[315035274,1708740632010,-158.16,0.00022601,2]
[315035275,1708740632019,-1046.11,0.0002267,2]
[315035276,1708740632028,-158.16,0.00022679,2]
[315035277,1708740632038,-158.16,0.00022757,2]
[315035278,1708740632047,-177.49585251,0.00022802,2]
[315035279,1708740632056,-499.99,0.00022834,2]
[315035280,1708740632066,-158.16,0.00022835,2]
[315035281,1708740632075,-150.0,0.00022891,2]
[315035282,1708740632084,-350.38,0.00022897,2]
[315035283,1708740632093,-236.87094281,0.00022898,2]
[315035284,1708740632102,-468.3751,0.00022899,2]
[315035285,1708740632111,-54741.24995187,0.00022899,2]
[315035286,1708740632121,-12683.55514008,0.000229,2]
[315035287,1708740632130,-163.4807474,0.000229,2]
[315035288,1708740632141,-5000.0,0.000229,2]
[315035289,1708740632151,-3800.1547953,0.000229,2]
[315035290,1708740632160,-387.85105906,0.000229,2]
[315035291,1708740632170,-158.16,0.00022913,2]
[315035292,1708740632180,-206.24608709,0.00022989,2]
[315035293,1708740632189,-158.16,0.00022991,2]
[315035294,1708740632199,-161.39,0.00022993,2]
[315035295,1708740632209,-441.08379837,0.00022998,2]
[315035296,1708740632218,-1818.3,0.00022998,2]
[315035297,1708740632227,-785949.29108505,0.00022999,2]
[315035298,1708740632257,-336.95603928,0.00022999,2]
[315035299,1708740632269,-1660.13937097,0.00022999,2]
[315035300,1708740632281,-1033.41389252,0.00022999,2]
[315035301,1708740632292,-7269.17492015,0.00022999,2]
[315035302,1708740632308,-665.51480579,0.00022999,2]
[315035303,1708740632552,-7040.29947448,0.00022999,2]
[315035304,1708740632564,-2251.63012449,0.00022999,2]
[315035305,1708740632575,-655.95440129,0.00022999,2]
[315035306,1708740632588,-609.86344662,0.00022999,2]
[315035307,1708740632600,-1971.9699998,0.00022999,2]
[315035308,1708740632611,-294.95310912,0.00022999,2]
[315035309,1708740632641,-500.33311052,0.00022999,2]
[315035310,1708740632656,-403.61157481,0.00022999,2]
[315035311,1708740632667,-908.3960103,0.00022999,2]
[315035319,1708740640334,-2740.83236872,0.00022999,2]
[315035320,1708740640346,-640.11932828,0.00022999,2]
[315035321,1708740640408,-164320.82791731,0.00022999,2]
[315035323,1708740640420,-827.91845062,0.00022999,2]
[315035325,1708740640470,-508.20482263,0.00022999,2]
[315035327,1708740640483,-598.79650643,0.00022999,2]
[315035328,1708740640495,-82520.70667051,0.00022999,2]
[315035329,1708740640505,-132933.06535725,0.00023,2]
[315035330,1708740640514,-1833.34,0.00023,2]
[315035331,1708740640524,-1825.11,0.00023,2]
[315035332,1708740640533,-1816.34,0.00023,2]
[315035333,1708740640542,-158.16,0.00023069,2]
[315035334,1708740640552,-1000.0,0.00023087,2]
[315035335,1708740640561,-177.78,0.00023095,2]
[315035336,1708740640571,-153.95,0.000231,2]
[315035337,1708740640580,-4671.34780533,0.0002313,2]
[315035338,1708740640589,-158.16,0.00023147,2]
[315035339,1708740640598,-36976.85604305,0.000232,2]
[315035340,1708740640607,-158.16,0.00023225,2]
[315035342,1708740640616,-158.16,0.00023303,2]
[315035344,1708740640625,-158.16,0.00023381,2]
[315035346,1708740640634,-158.16,0.00023459,2]
[315035348,1708740640644,-158.16,0.00023537,2]
[315035350,1708740640655,-158.16,0.00023615,2]
[315035352,1708740640665,-177.78,0.00023643,2]
[315035354,1708740640674,-167.0,0.00023663,2]
[315035355,1708740640683,-12683.55514008,0.00023709,2]
[315035357,1708740640692,-153.95,0.00023845,2]
[315035359,1708740640702,-300.0,0.00023942,2]
[315035361,1708740640712,-600.22859903,0.00024,2]
[315035363,1708740640720,-481575.15786128,0.00024,2]
[315035365,1708740640729,-163.48074738,0.00024132,2]
[315035367,1708740640738,-177.78,0.00024191,2]
[315035369,1708740640747,-1841.16,0.00024196,2]
[315035371,1708740640757,-4509.79,0.00024216,2]
[315035372,1708740640766,-1784.47,0.00024261,2]
[315035374,1708740640775,-1047.34,0.00024294,2]
[315035376,1708740640784,-1815.12,0.00024348,2]
[315035377,1708740640793,-1145.91,0.00024384,2]
[315035378,1708740640802,-3220.41,0.00024384,2]
[315035379,1708740640811,-1047.34,0.00024422,2]
[315035380,1708740640820,-387.85105904,0.00024434,2]
[315035381,1708740640829,-167.0,0.00024445,2]
[315035382,1708740640838,-1842.49,0.00024461,2]
[315035383,1708740640846,-443.62,0.00024511,2]
[315035384,1708740640856,-12683.55514008,0.00024519,2]
[315035385,1708740640865,-1047.34,0.0002455,2]
[315035386,1708740640874,-153.95,0.0002459,2]
[315035387,1708740640883,-1814.05,0.00024613,2]
[315035388,1708740640892,-250.0,0.00024658,2]
[315035389,1708740640902,-1500.0,0.00024658,3]
[315035390,1708740640911,-293.29,0.00024658,2]
[315035391,1708740640920,-1047.34,0.00024678,2]
[315035392,1708740640929,-177.78,0.00024739,2]
[315035393,1708740640938,-168.05,0.00024759,2]
[315035394,1708740640947,-1047.34,0.00024806,2]
[315035396,1708740640957,-1804.25,0.00024818,2]
[315035398,1708740640966,-233679.84002017,0.00024868,3]
[315035400,1708740640976,-244.53619963,0.00024887,2]
[315035402,1708740640985,-161.39,0.00024891,2]
[315035404,1708740640994,-1047.34,0.00024933,2]
[315035406,1708740641003,-1046.11,0.00024933,2]
[315035407,1708740641012,-2376851.57335288,0.00024987,4]
[315035409,1708740641021,-194364.8688,0.00024987,2]
[315035411,1708740641031,-2345.97761527,0.00025,2]
[315035413,1708740641040,-1047.34,0.00025061,2]
[315035415,1708740641049,-568.91190426,0.00025072,2]
[315035417,1708740641058,-1842.72,0.00025084,2]
[315035419,1708740641067,-105449.944492,0.0002509,2]
[315035421,1708740641076,-70789.17109725,0.0002509,2]
[315035423,1708740641086,-155.17423719,0.0002509,2]
[315035425,1708740641094,-1841.16,0.0002509,2]
[315035427,1708740641103,-3144.1418744,0.000251,2]
[315035429,1708740641113,-1047.34,0.00025189,2]
[315035430,1708740641123,-167.0,0.00025226,2]
[315035432,1708740641132,-177.78,0.00025287,2]
[315035434,1708740641141,-300.0,0.00025311,2]
[315035436,1708740641152,-1047.34,0.00025317,2]
[315035438,1708740641161,-12683.55514008,0.00025328,2]
[315035440,1708740641170,-163.48074738,0.00025363,2]
[315035442,1708740641179,-443.62,0.00025378,2]
[315035443,1708740641188,-1047.34,0.00025445,2]
[315035445,1708740641199,-800.0,0.00025479,2]
[315035446,1708740641208,-276.12341958,0.0002549,2]
[315035447,1708740641217,-326.0,0.00025501,2]
[315035448,1708740641226,-1047.34,0.00025573,2]
[315035449,1708740641235,-1047.34,0.00025701,2]
[315035450,1708740641244,-1047.34,0.00025828,2]
[315035451,1708740641257,-177.78,0.00025835,2]
[315035452,1708740641266,-4509.79,0.00025859,2]
[315035453,1708740641275,-1047.34,0.00025956,2]
[315035454,1708740641285,-387.85105904,0.00025968,2]
[315035455,1708740641294,-1000.0,0.00025973,2]
[315035456,1708740641303,-4205.14511547,0.00026,2]
[315035457,1708740641312,-202.61934455,0.00026,2]
[315035458,1708740641322,-167.0,0.00026007,2]
[315035459,1708740641331,-150.0,0.00026079,2]
[315035460,1708740641340,-1047.34,0.00026084,2]
[315035461,1708740641350,-12683.55514008,0.00026137,2]
[315035462,1708740641360,-1047.34,0.00026212,2]
[315035463,1708740641370,-443.62,0.00026245,2]
[315035464,1708740641380,-64116.1906033,0.000263,2]
[315035465,1708740641391,-1047.34,0.0002634,2]
[315035466,1708740641406,-177.78,0.00026383,2]
[315035467,1708740641416,-23076.30183071,0.000264,2]
[315035468,1708740641426,-1047.34,0.00026468,2]
[315035469,1708740641436,-163.48074738,0.00026595,2]
[315035470,1708740641446,-1047.34,0.00026596,2]
[315035472,1708740641456,-1047.34,0.00026723,2]
[315035473,1708740641466,-167.0,0.00026788,2]
[315035474,1708740641477,-161.39,0.00026788,2]
[315035475,1708740641487,-10068.66372889,0.00026798,2]
[315035476,1708740641497,-10068.6637288,0.00026798,2]
[315035477,1708740641506,-10068.6637288,0.00026798,2]
[315035478,1708740641515,-326.0,0.00026871,2]
[315035479,1708740641525,-177.78,0.00026931,2]
[315035480,1708740641535,-12683.55514008,0.00026947,2]
[315035481,1708740641545,-182893.08814965,0.00027,2]
[315035482,1708740641554,-284.44497454,0.00027,2]
[315035483,1708740641564,-168.05,0.00027009,2]
[315035484,1708740641573,-13879.69741243,0.0002705,2]
[315035485,1708740641582,-443.62,0.00027112,2]
[315035486,1708740641592,-1046.11,0.00027197,2]
[315035487,1708740641601,-86977.93532664,0.000272,2]
[315035488,1708740641610,-155.0,0.00027397,2]
[315035489,1708740641620,-153.53893252,0.00027397,7]
[315035490,1708740641630,-152.36348205,0.00027397,7]
[315035491,1708740641640,-151.29075386,0.00027397,7]
[315035493,1708740641650,-1754.49,0.00027397,2]
[315035495,1708740641659,-2000.0,0.000274,2]
[315035496,1708740641669,-750.0,0.000274,2]
[315035499,1708740641679,-157.54,0.000274,2]
[315035500,1708740641688,-157.54,0.000274,2]
[315035501,1708740641698,-157.54,0.000274,2]
[315035502,1708740641707,-157.54,0.000274,2]
[315035503,1708740641717,-157.54,0.000274,2]
[315035504,1708740641727,-157.54,0.000274,2]
[315035505,1708740641737,-157.54,0.000274,2]
[315035506,1708740641747,-177.78,0.00027479,2]
[315035507,1708740641756,-187.15311262,0.000275,2]
[315035508,1708740641766,-13012.85498383,0.000275,2]
[315035509,1708740641776,-387.85105904,0.00027502,3]
[315035510,1708740641785,-4509.79,0.00027503,2]
[315035511,1708740641795,-1754.49,0.00027556,2]
[315035512,1708740641805,-167.0,0.00027569,2]
[315035513,1708740641814,-150.0,0.00027644,7]
[315035514,1708740641824,-150.0,0.00027644,7]
[315035515,1708740641834,-1754.49,0.00027714,2]
[315035516,1708740641843,-12683.55514008,0.00027756,2]
[315035517,1708740641853,-163.48074738,0.00027826,2]
[315035518,1708740641862,-1754.49,0.00027872,2]
[315035519,1708740641872,-361.43537658,0.00027874,2]
[315035520,1708740641881,-150.0,0.0002789,7]
[315035521,1708740641891,-150.0,0.0002789,7]
[315035522,1708740641900,-2613463.37517059,0.000279,2]
[315035523,1708740641910,-443.62,0.00027979,2]
[315035524,1708740641919,-634055.71395157,0.00028,2]
[315035525,1708740641934,-340008.36388539,0.00028,2]
[315035526,1708740641943,-1000.0,0.00028,2]
[315035527,1708740641954,-205.39522038,0.00028,2]
[315035528,1708740641964,-177.78,0.00028027,2]
[315035529,1708740641973,-1754.49,0.0002803,2]
[315035530,1708740641983,-150.0,0.00028137,7]
[315035531,1708740641993,-1754.49,0.00028189,2]
[315035532,1708740642002,-326.0,0.00028241,2]
[315035533,1708740642011,-1754.49,0.00028347,2]
[315035534,1708740642021,-10068.6637288,0.00028355,2]
[315035535,1708740642030,-1754.49,0.00028505,2]
[315035536,1708740642039,-12683.55514008,0.00028566,2]
[315035537,1708740642049,-177.78,0.00028575,2]
[315035538,1708740642058,-1754.49,0.00028664,2]
[315035539,1708740642068,-155.0,0.00028767,2]
[315035540,1708740642077,-300.53,0.000288,2]
[315035541,1708740642086,-1754.49,0.00028822,2]
[315035542,1708740642095,-443.62,0.00028846,2]
[315035543,1708740642105,-1000.0,0.00028859,2]
[315035544,1708740642114,-28613.00034614,0.00029,3]
[315035545,1708740642124,-8008.95624105,0.00029,2]
[315035546,1708740642133,-1437.76,0.00029,2]
[315035547,1708740642143,-387.85105904,0.00029035,4]
[315035548,1708740642155,-177.78,0.00029123,2]
[315035549,1708740642164,-4509.79,0.00029147,2]
[315035550,1708740642173,-1496.37974001,0.00029219,28]
[315035551,1708740642182,-244.53619961,0.00029254,2]
[315035552,1708740642192,-168.05,0.0002926,2]
[315035553,1708740642201,-12683.55514008,0.00029375,2]
[315035554,1708740642210,-1046.11,0.00029461,2]
[315035555,1708740642220,-520.33676917,0.000295,3]
[315035556,1708740642229,-326.0,0.00029611,2]
[315035557,1708740642238,-177.78,0.00029671,2]
[315035558,1708740642248,-443.62,0.00029713,2]
[315035559,1708740642257,-1000.0,0.0002978,2]
[315035560,1708740642267,-1006.3572,0.00029799,2]
[315035561,1708740642277,-761969.76262821,0.0002988,2]
[315035562,1708740642287,-35643.09460585,0.000299,2]
[315035563,1708740642297,-808.58170183,0.00029999,2]
[315035564,1708740642307,-279.5022437,0.0003,120]
[315035565,1708740642317,-1560.75825939,0.0003,4]
[315035566,1708740642326,-155.0,0.0003,4]
[315035567,1708740642335,-14104.88770111,0.0003,2]
[315035568,1708740642344,-19972.92714674,0.0003,2]
[315035569,1708740642354,-345.19511745,0.0003,2]
[315035570,1708740642363,-314.3744659,0.0003,2]
[315035571,1708740642372,-15234.75114374,0.0003,2]
[315035572,1708740642381,-5667.05387638,0.0003,4]
[315035573,1708740642393,-136409.2303204,0.0003,4]
[315035574,1708740642404,-5000.0,0.0003,2]
[315035575,1708740642413,-8853.0,0.0003,2]
[315035576,1708740642422,-51100.0,0.0003,2]
[315035577,1708740642433,-1123.82410798,0.000301,2]
[315035578,1708740642643,-1634.0,0.000301,2]
[315035579,1708740642661,-150.0,0.00030137,2]
[315035580,1708740642670,-155.0,0.00030137,2]
[315035581,1708740642679,-12683.55514008,0.00030184,2]
[315035582,1708740642689,-177.78,0.00030219,2]
[315035583,1708740642698,-387.85105904,0.00030569,5]
[315035584,1708740642707,-150.0,0.00030714,2]
[315035585,1708740642716,-177.78,0.00030767,2]
[315035586,1708740642726,-4509.79,0.00030791,2]
[315035588,1708740642735,-16057.63085513,0.000309,2]
[315035590,1708740642744,-326.0,0.00030981,2]
[315035592,1708740642754,-12683.55514008,0.00030994,2]
[315035593,1708740642763,-14631.90497028,0.00031,2]
[315035595,1708740642772,-14412.00515644,0.00031,2]
[315035597,1708740642781,-176.89,0.00031189,2]
[315035600,1708740642790,-150.0,0.00031291,2]
[315035603,1708740642799,-177.78,0.00031315,2]
[315035605,1708740642808,-19999.99,0.00031426,2]
[315035607,1708740642817,-8534.2394707,0.0003143,4]
[315035609,1708740642826,-26780.0,0.000315,2]
[315035611,1708740642836,-3861.0,0.000315,2]
[315035613,1708740642846,-1500.0,0.000315,2]
[315035616,1708740642855,-155.0,0.00031507,2]
[315035619,1708740642864,-168.05,0.00031511,2]
[315035622,1708740642873,-1046.11,0.00031725,2]
[315035625,1708740642882,-1000.0,0.00031745,2]
[315035628,1708740642891,-1000.0,0.000318,2]
[315035630,1708740642900,-12683.55514008,0.00031803,3]
[315035633,1708740642911,-180.97207277,0.00031863,2]
[315035637,1708740642921,-150.0,0.00031867,2]
[315035640,1708740642930,-387.85105904,0.00032103,5]
[315035644,1708740642939,-29705.69803058,0.0003232,2]
[315035648,1708740642949,-326.0,0.00032351,2]
[315035652,1708740642957,-150.0,0.00032444,2]
[315035656,1708740642966,-161.81,0.00032877,2]
[315035658,1708740642976,-250.0,0.00032877,2]
[315035660,1708740642985,-150.0,0.00032877,2]
[315035662,1708740642994,-161.89,0.00032877,2]
[315035664,1708740643003,-319.29,0.00032877,2]
[315035666,1708740643012,-22055.06311868,0.00032877,2]
[315035667,1708740643025,-33700.07688132,0.00032877,2]
[315035668,1708740643034,-202.11300569,0.00032877,2]
[315035669,1708740643044,-155.0,0.00032877,2]
[315035670,1708740643053,-1634.15683684,0.000329,2]
[315035671,1708740643062,-8000.0,0.000329,2]
[315035672,1708740643071,-1532.46748951,0.00033,2]
[315035673,1708740643080,-150.0,0.00033021,2]
[315035674,1708740643090,-151.0,0.00033032,120]
[315035675,1708740643100,-1129.07,0.000335,2]
[315035676,1708740643110,-1129.07,0.000335,2]
[315035677,1708740643119,-1129.07,0.000335,2]
[315035678,1708740643129,-1129.07,0.000335,2]
[315035679,1708740643139,-1129.07,0.000335,2]
[315035680,1708740643148,-1129.07,0.000335,2]
[315035681,1708740643160,-1129.07,0.000335,2]
[315035682,1708740643171,-1129.07,0.000335,2]
[315035683,1708740643181,-1129.07,0.000335,2]
[315035684,1708740643190,-1129.07,0.000335,2]
[315035685,1708740643199,-1129.07,0.000335,2]
[315035686,1708740643208,-1129.07,0.000335,2]
[315035687,1708740643218,-1129.07,0.000335,2]
[315035688,1708740643228,-1129.07,0.000335,2]
[315035689,1708740643237,-1129.07,0.000335,2]
[315035690,1708740643246,-1129.07,0.000335,2]
[315035691,1708740643256,-1129.07,0.000335,2]
[315035692,1708740643265,-1129.07,0.000335,2]
[315035693,1708740643274,-1129.07,0.000335,2]
[315035694,1708740643283,-1129.07,0.000335,2]
[315035695,1708740643293,-150.0,0.00033598,2]
[315035696,1708740643302,-244.53619961,0.00033621,2]
[315035697,1708740643312,-1000.0,0.00033656,2]
[315035698,1708740643321,-151.0,0.00033707,30]
[315035699,1708740643331,-643.0,0.00033721,2]
[315035700,1708740643340,-15161.9903253,0.00033737,7]
[315035701,1708740643349,-18334.86638218,0.00033737,7]
[315035702,1708740643358,-1577.04921346,0.00033737,4]
[315035703,1708740643367,-150.0,0.00033742,2]
[315035704,1708740643378,-168.05,0.00033762,2]
[315035705,1708740643387,-152.50109949,0.000339,2]
[315035706,1708740643400,-152.50109945,0.000339,2]
[315035707,1708740643410,-152.50109945,0.000339,2]
[315035708,1708740643418,-152.50109945,0.000339,2]
[315035709,1708740643427,-152.50109945,0.000339,2]
[315035710,1708740643438,-152.50109945,0.000339,2]
[315035711,1708740643447,-152.50109945,0.000339,2]
[315035712,1708740643456,-152.50109945,0.000339,2]
[315035713,1708740643466,-152.50109945,0.000339,2]
[315035714,1708740643476,-152.50109945,0.000339,2]
[315035715,1708740643487,-152.50109945,0.000339,2]
[315035716,1708740643496,-152.50109945,0.000339,2]
[315035717,1708740643506,-150.1,0.00033913,2]
[315035718,1708740643516,-1046.11,0.00033989,2]
[315035719,1708740643525,-152.50109945,0.00034031,2]
[315035720,1708740643535,-150.0,0.00034175,2]
[315035721,1708740643544,-8000.0,0.000342,2]
[315035722,1708740643554,-170.5988924,0.00034218,7]
[315035723,1708740643565,-155.0,0.00034247,2]
[315035724,1708740643574,-154.28158887,0.00034268,7]
[315035725,1708740643583,-1627.28690046,0.00034329,7]
[315035726,1708740643593,-5083.07402025,0.00034329,7]
[315035727,1708740643602,-2336.61225007,0.00034329,7]
[315035728,1708740643611,-233.661225,0.00034329,5]
[315035729,1708740643620,-151.0,0.00034394,7]
[315035730,1708740643629,-1009.691824,0.0003452,2]
[315035731,1708740643638,-13451.118487,0.0003452,2]
[315035732,1708740643647,-2690.223697,0.0003452,2]
[315035733,1708740643658,-3362.779621,0.0003452,2]
[315035734,1708740643667,-8330.98,0.00034521,2]
[315035735,1708740643676,-150.0,0.00034607,2]
[315035736,1708740643689,-1000.0,0.00034631,2]
[315035737,1708740643699,-150.0,0.00034751,2]
[315035738,1708740643708,-1514.537737,0.00034794,2]
[315035739,1708740643718,-20176.67773,0.00034794,2]
[315035740,1708740643727,-4035.335546,0.00034794,2]
[315035741,1708740643737,-5044.169432,0.00034794,2]
[315035742,1708740643746,-4797.20827891,0.000349,2]
[315035743,1708740643756,-4797.20827886,0.000349,2]
[315035744,1708740643765,-4797.20827886,0.000349,2]
[315035745,1708740643774,-4797.20827886,0.000349,2]
[315035746,1708740643783,-4797.20827886,0.000349,2]